bitfinex/quotes_SOLUSD_20230101
["timestamp","ask_amount","ask_price","bid_price","bid_amount"]
[1672544823034,40.0,9.9586,9.9517,23.1622]
[1672544823233,40.0,9.9584,9.9517,23.1622]
[1672544826307,75.41,9.9585,9.9517,23.1622]
[1672544827038,75.41,9.9587,9.9517,23.1622]
[1672544827244,75.41,9.959,9.9517,23.1622]
[1672544829138,40.0,9.9589,9.9517,23.1622]
[1672544829350,75.41,9.9588,9.9517,23.1622]
[1672544829773,40.0,9.9587,9.9517,23.1622]
[1672544829993,40.0,9.9585,9.9517,23.1622]
[1672544830295,75.41,9.9584,9.9517,23.1622]
[1672544830513,75.41,9.9589,9.9517,23.1622]
[1672544832505,75.41,9.9589,9.9518,40.0]
[1672544833135,23.9555,9.959,9.9518,40.0]
[1672544835124,75.41,9.9589,9.9518,40.0]
[1672544835345,23.9555,9.959,9.9518,40.0]
[1672544836610,75.41,9.9589,9.9518,40.0]
[1672544836817,23.9555,9.959,9.9518,40.0]
[1672544837034,23.9555,9.959,9.9517,23.1622]
[1672544837436,40.0,9.9589,9.9517,23.1622]
[1672544837646,40.0,9.9587,9.9517,23.1622]
[1672544837856,40.0,9.9585,9.9517,23.1622]
[1672544838082,75.41,9.9584,9.9517,23.1622]
[1672544838276,40.0,9.9583,9.9517,23.1622]
[1672544838487,40.0,9.9581,9.9517,23.1622]
[1672544838699,40.0,9.9579,9.9517,23.1622]
[1672544838925,75.42,9.9578,9.9517,23.1622]
[1672544839343,40.0,9.9579,9.9517,23.1622]
[1672544839554,75.42,9.9578,9.9517,23.1622]
[1672544840177,40.0,9.9577,9.9517,23.1622]
[1672544840392,40.0,9.9575,9.9517,23.1622]
[1672544840712,40.0,9.9573,9.9517,23.1622]
[1672544840925,75.42,9.9572,9.9507,22.7788]
[1672544841236,40.0,9.9571,9.9507,22.7788]
[1672544841449,40.0,9.9569,9.9507,22.7788]
[1672544841860,75.42,9.957,9.9507,22.7788]
[1672544842069,75.42,9.9572,9.9507,22.7788]
[1672544842904,75.42,9.9576,9.9507,22.7788]
[1672544843127,40.0,9.9583,9.9507,22.7788]
[1672544843337,40.0,9.9581,9.9507,22.7788]
[1672544843540,75.42,9.958,9.9507,22.7788]
[1672544843753,40.0,9.9579,9.9507,22.7788]
[1672544844075,40.0,9.9581,9.9507,22.7788]
[1672544844076,75.42,9.9578,9.9508,40.0]
[1672544844293,75.41,9.9582,9.9517,40.0]
[1672544844505,75.4,9.9597,9.9517,40.0]
[1672544845125,75.4,9.9597,9.9508,40.0]
[1672544845970,75.4,9.9599,9.9508,40.0]
[1672544846189,75.4,9.9599,9.9517,40.0]
[1672544847022,40.0,9.9589,9.9508,40.0]
[1672544847444,40.0,9.9598,9.9508,40.0]
[1672544847656,75.4,9.9597,9.9508,40.0]
[1672544848583,75.4,9.9597,9.951,40.0]
[1672544848792,75.4,9.9597,9.9511,20.0]
[1672544849863,75.4,9.9597,9.9512,40.0]
[1672544850080,75.4,9.9599,9.9513,20.0]
[1672544850382,75.4,9.9599,9.9514,40.0]
[1672544850577,75.38,9.9625,9.9514,73.22]
[1672544850788,75.4,9.9599,9.9514,73.22]
[1672544851523,40.0,9.9599,9.9514,73.22]
[1672544851943,75.38,9.9625,9.9514,73.22]
[1672544851944,40.0,9.9624,9.9514,73.22]
[1672544852280,75.38,9.9623,9.9514,73.22]
[1672544853647,75.4,9.9599,9.9514,40.0]
[1672544857110,75.4,9.9599,9.9515,16.97]
[1672544860601,75.4,9.9599,9.9514,40.0]
[1672544860602,75.4,9.9599,9.9514,64.72]
[1672544863733,40.0,9.9598,9.9514,64.72]
[1672544864787,75.38,9.9623,9.9514,64.72]
[1672544865014,40.0,9.9599,9.9514,64.72]
[1672544865756,40.0,9.9599,9.9514,40.0]
[1672544866255,40.0,9.9616,9.9515,11.52]
[1672544866468,75.39,9.9615,9.9515,11.52]
[1672544867299,75.4,9.9599,9.9515,11.52]
[1672544867515,75.41,9.9589,9.9514,40.0]
[1672544867727,75.4,9.9599,9.9514,40.0]
[1672544869934,40.0,9.9598,9.9514,40.0]
[1672544870149,75.4,9.9597,9.9514,40.0]
[1672544872582,75.4,9.9599,9.9514,40.0]
[1672544874773,40.0,9.9598,9.9514,40.0]
[1672544874985,75.4,9.9597,9.9514,40.0]
[1672544875194,75.4,9.9599,9.9514,40.0]
[1672544877085,75.39,9.9617,9.9514,40.0]
[1672544886234,75.39,9.9617,9.9513,20.0]
[1672544886235,40.0,9.9589,9.9513,20.0]
[1672544886447,75.4,9.9599,9.9508,20.0]
[1672544886645,75.4,9.9599,9.9509,40.0]
[1672544886850,75.4,9.9599,9.9511,40.0]
[1672544887075,40.0,9.9598,9.9512,20.0]
[1672544888021,40.0,9.9598,9.951,20.0]
[1672544888449,75.4,9.9597,9.951,20.0]
[1672544892101,40.0,9.9589,9.951,20.0]
[1672544892315,75.41,9.9588,9.9511,40.0]
[1672544892542,75.41,9.9589,9.9512,20.0]
[1672544894730,40.0,9.9588,9.9512,20.0]
[1672544894955,75.41,9.9587,9.9508,60.0]
[1672544895166,75.41,9.9589,9.9508,60.0]
[1672544896845,40.0,9.9588,9.9508,20.0]
[1672544897039,40.0,9.9586,9.9508,20.0]
[1672544897253,75.41,9.9585,9.9508,20.0]
[1672544897904,40.0,9.9584,9.9508,20.0]
[1672544898217,75.41,9.9583,9.9508,20.0]
[1672544899155,75.41,9.9583,9.9509,40.0]
[1672544899360,75.41,9.9589,9.951,20.0]
[1672544899565,40.0,9.9588,9.951,20.0]
[1672544899780,75.41,9.9587,9.951,20.0]
[1672544900004,40.0,9.9586,9.9509,20.0]
[1672544900196,75.41,9.9585,9.9509,20.0]
[1672544900401,40.0,9.9584,9.9509,20.0]
[1672544900616,75.41,9.9583,9.9509,20.0]
[1672544901043,75.41,9.9583,9.9508,20.0]
[1672544901578,40.0,9.9582,9.9508,20.0]
[1672544901777,40.0,9.958,9.9508,20.0]
[1672544901990,75.42,9.9579,9.9508,20.0]
[1672544904101,40.0,9.9582,9.9508,20.0]
[1672544904306,40.0,9.958,9.9508,20.0]
[1672544904509,40.0,9.9578,9.9508,20.0]
[1672544904721,75.42,9.9577,9.9508,20.0]
[1672544905254,40.0,9.9582,9.9508,20.0]
[1672544905255,75.42,9.9581,9.9508,20.0]
[1672544905472,40.0,9.958,9.9508,20.0]
[1672544905660,40.0,9.9578,9.9508,20.0]
[1672544905873,75.42,9.9577,9.9508,20.0]
[1672544906081,40.0,9.9576,9.9508,20.0]
[1672544918199,40.0,9.9574,9.9508,20.0]
[1672544918408,75.42,9.9573,9.9508,20.0]
[1672544918632,40.0,9.9572,9.9508,20.0]
[1672544926496,40.0,9.957,9.9508,20.0]
[1672544926719,40.0,9.9568,9.9508,20.0]
[1672544926927,75.43,9.9567,9.9508,20.0]
[1672544927232,40.0,9.9566,9.9508,20.0]
[1672544927860,20.0,9.9565,9.9507,22.7788]
[1672544928074,20.0,9.9565,9.9496,9.251]
[1672544928075,115.43,9.9564,9.9496,9.251]
[1672544928510,40.0,9.9562,9.9496,9.251]
[1672544928707,40.0,9.956,9.9496,9.251]
[1672544928929,40.0,9.9558,9.9496,9.251]
[1672544929120,95.43,9.9557,9.9496,9.251]
[1672544929332,40.0,9.9556,9.9496,9.251]
[1672544929538,40.0,9.9554,9.9496,9.251]
[1672544929755,40.0,9.9552,9.9496,9.251]
[1672544929971,75.44,9.9551,9.9496,9.251]
[1672544930178,40.0,9.955,9.9496,9.251]
[1672544930405,40.0,9.9548,9.9496,9.251]
[1672544930598,40.0,9.9546,9.9496,9.251]
[1672544930804,75.44,9.9545,9.9496,9.251]
[1672544931016,40.0,9.9544,9.9496,9.251]
[1672544931221,40.0,9.9542,9.9496,9.251]
[1672544931450,75.45,9.9541,9.9496,9.251]
[1672544931672,40.0,9.954,9.9496,9.251]
[1672544934501,40.0,9.9538,9.9496,9.251]
[1672544934817,40.0,9.9536,9.9496,9.251]
[1672544935012,40.0,9.9534,9.9496,9.251]
[1672544937859,40.0,9.9534,9.9434,4.887]
[1672544938074,40.0,9.9532,9.9434,4.887]
[1672544938702,40.0,9.953,9.9434,4.887]
[1672544939316,40.0,9.9528,9.9434,4.887]
[1672544939870,40.0,9.9528,9.9434,4.81178523]
[1672544940060,40.0,9.9526,9.9434,4.81178523]
[1672544940272,40.0,9.9526,9.9432,4.887]
[1672544940486,40.0,9.9526,9.9433,40.0]
[1672544940694,40.0,9.9524,9.9434,4.887]
[1672544941321,40.0,9.9522,9.9434,4.887]
[1672544941525,40.0,9.9522,9.9432,4.887]
[1672544941942,40.0,9.952,9.9432,4.887]
[1672544942472,24.5963,9.9519,9.9433,40.0]
[1672544942995,40.0,9.9518,9.9432,4.887]
[1672544943222,63.2147,9.9518,9.9432,4.887]
[1672544943843,40.0,9.9516,9.9432,4.887]
[1672544944590,23.2147,9.9515,9.9432,4.887]
[1672544945015,40.0,9.9516,9.9432,4.887]
[1672544945016,23.2147,9.9514,9.9432,4.887]
[1672544945533,23.2147,9.9513,9.9432,4.887]
[1672544946364,22.6581,9.9512,9.9432,4.887]
[1672544946902,22.6581,9.9511,9.9432,4.887]
[1672544947536,22.6581,9.951,9.9432,4.887]
[1672544948153,22.6581,9.951,9.9434,40.0]
[1672544948485,22.6581,9.951,9.9436,301.7]
[1672544948890,22.6581,9.951,9.9438,301.7]
[1672544949101,22.6581,9.951,9.9439,40.0]
[1672544949318,22.6581,9.951,9.9441,40.0]
[1672544950463,22.6581,9.951,9.9444,40.0]
[1672544950880,22.6581,9.951,9.9446,301.7]
[1672544951098,22.6581,9.951,9.9447,40.0]
[1672544951316,22.6581,9.951,9.9449,40.0]
[1672544951728,22.6581,9.951,9.9451,40.0]
[1672544952267,22.6581,9.951,9.9454,40.0]
[1672544952690,22.6581,9.951,9.9456,301.7]
[1672544953005,22.6581,9.951,9.9458,301.7]
[1672544953187,22.6581,9.951,9.9459,40.0]
[1672544953397,22.6581,9.951,9.9461,40.0]
[1672544953611,115.4,9.9605,9.9461,40.0]
[1672544953830,75.4,9.9605,9.9463,341.7]
[1672544954038,40.0,9.9617,9.9465,40.0]
[1672544954243,75.39,9.9616,9.9465,341.7]
[1672544954460,40.0,9.9615,9.9467,341.7]
[1672544954668,75.39,9.9614,9.9467,341.7]
[1672544954881,40.0,9.9613,9.947,40.0]
[1672544955090,40.0,9.9611,9.9471,20.0]
[1672544955301,75.39,9.961,9.9472,341.7]
[1672544955518,75.39,9.961,9.9474,40.0]
[1672544955725,75.39,9.961,9.9476,40.0]
[1672544955938,40.0,9.9609,9.9477,20.0]
[1672544956153,40.0,9.9607,9.9479,40.0]
[1672544956362,75.4,9.9606,9.9481,40.0]
[1672544956567,75.4,9.9606,9.9482,24.145]
[1672544956778,75.4,9.9608,9.9484,40.0]
[1672544956987,75.4,9.9608,9.9486,40.0]
[1672544957196,40.0,9.9607,9.9487,24.145]
[1672544957403,75.4,9.9606,9.9489,40.0]
[1672544957613,75.4,9.9606,9.949,4.145]
[1672544958153,75.4,9.9606,9.9492,40.0]
[1672544958367,75.4,9.9606,9.9493,20.0]
[1672544958557,75.4,9.9606,9.9494,40.0]
[1672544959098,75.4,9.9606,9.9496,40.0]
[1672544959420,24.461,9.9605,9.9498,40.0]
[1672544959621,75.4,9.9604,9.9498,40.0]
[1672544959838,99.861,9.9604,9.95,40.0]
[1672544960154,99.861,9.9604,9.9502,40.0]
[1672544960576,99.861,9.9604,9.9504,40.0]
[1672544960890,99.861,9.9604,9.9505,20.0]
[1672544961075,99.861,9.9604,9.9506,40.0]
[1672544961499,99.861,9.9604,9.9508,40.0]
[1672544961725,22.6461,9.9603,9.9508,40.0]
[1672544961936,75.4,9.9602,9.9509,20.0]
[1672544962265,75.4,9.9602,9.951,40.0]
[1672544962441,75.4,9.9602,9.9512,40.0]
[1672544962886,75.4,9.9602,9.9514,40.0]
[1672544965506,98.3271,9.9602,9.9514,40.0]
[1672544967087,98.2465026,9.9602,9.9514,40.0]
[1672544969698,22.8457,9.9601,9.9514,40.0]
[1672544969906,75.4,9.96,9.9514,40.0]
[1672544975600,100.3294,9.96,9.9514,40.0]
[1672544981378,24.9177,9.9599,9.9514,40.0]
[1672544981588,75.4,9.9598,9.9514,40.0]
[1672544981802,24.9177,9.9599,9.9516,341.7]
[1672544982123,24.9177,9.9599,9.9518,341.7]
[1672544982534,24.9177,9.9599,9.952,40.0]
[1672544982946,75.4,9.9598,9.952,40.0]
[1672544983388,24.9177,9.9599,9.952,40.0]
[1672544983913,22.5767,9.9598,9.952,40.0]
[1672544985380,22.5767,9.9597,9.952,40.0]
[1672544987373,22.5265,9.9596,9.952,40.0]
[1672544989488,22.5265,9.9595,9.952,40.0]
[1672544991584,23.6174,9.9594,9.9509,23.7559]
[1672544991790,40.0,9.9592,9.951,20.0]
[1672544991994,75.41,9.9591,9.951,20.0]
[1672544992204,40.0,9.959,9.951,20.0]
[1672544992414,40.0,9.9588,9.951,20.0]
[1672544992626,40.0,9.9586,9.951,20.0]
[1672544992834,75.41,9.9585,9.951,20.0]
[1672544993167,40.0,9.9584,9.951,20.0]
[1672544993381,75.41,9.9583,9.951,20.0]
[1672544993589,40.0,9.9582,9.951,20.0]
[1672544993780,40.0,9.958,9.951,20.0]
[1672544993990,75.42,9.9579,9.951,20.0]
[1672544994203,40.0,9.9578,9.951,20.0]
[1672544994532,40.0,9.9576,9.951,20.0]
[1672544994727,40.0,9.9574,9.951,20.0]
[1672544994937,75.42,9.9573,9.951,20.0]
[1672544995163,40.0,9.9572,9.951,20.0]
[1672544997584,40.0,9.9576,9.951,20.0]
[1672544998836,40.0,9.9578,9.951,20.0]
[1672544999366,40.0,9.9576,9.951,20.0]
[1672544999579,40.0,9.9574,9.951,20.0]
[1672544999787,40.0,9.9572,9.951,20.0]
[1672544999993,75.42,9.9571,9.951,20.0]
[1672545000208,40.0,9.957,9.951,20.0]
[1672545000431,40.0,9.9568,9.951,20.0]
[1672545001786,40.0,9.9566,9.951,20.0]
[1672545001993,40.0,9.9564,9.951,20.0]
[1672545002952,40.0,9.9564,9.9493,20.0]
[1672545003166,75.43,9.9563,9.9493,20.0]
[1672545003574,40.0,9.9566,9.9493,20.0]
[1672545004620,40.0,9.9568,9.9493,20.0]
[1672545007257,75.42,9.9569,9.9493,20.0]
[1672545007464,40.0,9.957,9.9493,20.0]
[1672545007685,75.42,9.9569,9.9493,20.0]
[1672545007893,40.0,9.9568,9.9493,20.0]
[1672545008103,40.0,9.9566,9.9493,20.0]
[1672545008532,75.43,9.9567,9.9493,20.0]
[1672545008724,40.0,9.9566,9.9493,20.0]
[1672545009368,75.43,9.9567,9.9493,20.0]
[1672545009578,40.0,9.9566,9.9493,20.0]
[1672545014088,75.43,9.9567,9.9493,20.0]
[1672545014297,40.0,9.9568,9.9493,20.0]
[1672545014508,40.0,9.9566,9.9493,20.0]
[1672545014721,40.0,9.9564,9.9493,20.0]
[1672545025659,75.43,9.9565,9.9493,20.0]
[1672545025860,75.43,9.9567,9.9494,40.0]
[1672545026066,75.42,9.9569,9.9495,20.0]
[1672545026395,40.0,9.9568,9.9495,20.0]
[1672545026602,40.0,9.9566,9.9495,20.0]
[1672545026807,75.43,9.9565,9.9493,20.0]
[1672545027229,40.0,9.9564,9.9493,20.0]
[1672545027442,75.43,9.9563,9.9493,20.0]
[1672545027979,75.43,9.9563,9.9494,40.0]
[1672545028172,40.0,9.9568,9.9495,20.0]
[1672545028379,75.43,9.9567,9.9494,40.0]
[1672545028593,75.43,9.9567,9.9495,20.0]
[1672545029117,75.42,9.9573,9.9495,20.0]
[1672545029328,40.0,9.9572,9.9494,40.0]
[1672545029536,75.42,9.9571,9.9495,20.0]
[1672545030490,40.0,9.9572,9.9493,20.0]
[1672545030719,75.42,9.9571,9.9493,20.0]
[1672545031122,75.42,9.9571,9.9494,40.0]
[1672545031330,40.0,9.9572,9.9495,20.0]
[1672545031557,40.0,9.957,9.9495,20.0]
[1672545031756,75.42,9.9569,9.9495,20.0]
[1672545032814,75.42,9.9571,9.9495,20.0]
[1672545033136,40.0,9.957,9.9493,20.0]
[1672545033348,75.42,9.9569,9.9493,20.0]
[1672545034395,75.42,9.9575,9.9494,40.0]
[1672545034583,75.42,9.9575,9.9495,20.0]
[1672545034802,75.42,9.9577,9.9495,20.0]
[1672545035016,75.42,9.9579,9.9495,20.0]
[1672545035644,75.42,9.9581,9.9496,40.0]
[1672545035860,75.41,9.9585,9.9497,20.0]
[1672545036179,75.41,9.9587,9.9497,20.0]
[1672545037109,74.12123835,9.9614,9.9497,20.0]
[1672545037110,75.41,9.9592,9.9498,40.0]
[1672545037323,75.41,9.9592,9.9499,20.0]
[1672545038592,40.0,9.9591,9.9499,20.0]
[1672545038810,40.0,9.9589,9.9499,20.0]
[1672545039002,40.0,9.9587,9.9499,20.0]
[1672545039217,75.41,9.9586,9.9499,20.0]
[1672545039540,40.0,9.9585,9.9499,20.0]
[1672545039755,75.41,9.9584,9.9499,20.0]
[1672545040781,40.0,9.9591,9.9499,20.0]
[1672545040782,40.0,9.9589,9.9499,20.0]
[1672545040995,40.0,9.9587,9.9499,20.0]
[1672545041205,75.41,9.9586,9.9499,20.0]
[1672545041661,75.41,9.9588,9.9499,20.0]
[1672545042058,75.41,9.959,9.9499,20.0]
[1672545043121,75.41,9.9592,9.9499,20.0]
[1672545044394,40.0,9.9591,9.9499,20.0]
[1672545044599,40.0,9.9589,9.9499,20.0]
[1672545044811,75.41,9.9588,9.9499,20.0]
[1672545045221,40.0,9.9591,9.9499,20.0]
[1672545045555,40.0,9.9589,9.9499,20.0]
[1672545045779,75.41,9.9588,9.9499,20.0]
[1672545046285,40.0,9.9587,9.9499,20.0]
[1672545046497,40.0,9.9585,9.9499,20.0]
[1672545046688,40.0,9.9583,9.9499,20.0]
[1672545046897,40.0,9.9581,9.9499,20.0]
[1672545047109,75.42,9.958,9.9499,20.0]
[1672545049123,40.0,9.9581,9.9499,20.0]
[1672545049337,40.0,9.9579,9.9499,20.0]
[1672545049654,75.42,9.9578,9.9497,20.0]
[1672545049846,40.0,9.9577,9.9497,20.0]
[1672545050169,75.42,9.9576,9.9497,20.0]
[1672545050388,40.0,9.9575,9.9497,20.0]
[1672545050593,40.0,9.9573,9.9497,20.0]
[1672545050910,75.42,9.9572,9.9497,20.0]
[1672545051856,75.42,9.9572,9.9498,40.0]
[1672545052067,75.41,9.9582,9.9499,20.0]
[1672545052815,40.0,9.9581,9.9499,20.0]
[1672545053028,40.0,9.9579,9.9499,20.0]
[1672545053233,75.42,9.9578,9.9499,20.0]
[1672545053437,40.0,9.9577,9.9497,20.0]
[1672545053644,40.0,9.9575,9.9497,20.0]
[1672545053855,40.0,9.9573,9.9497,20.0]
[1672545054187,74.12123835,9.9561,9.9456,4.227]
[1672545054371,115.43,9.956,9.9456,4.227]
[1672545054798,20.0,9.9559,9.9456,4.227]
[1672545055113,40.0,9.9557,9.9456,4.227]
[1672545055340,95.43,9.9556,9.9456,4.227]
[1672545055743,40.0,9.9555,9.9456,4.227]
[1672545055953,75.44,9.9554,9.9456,4.227]
[1672545056167,75.44,9.9554,9.9457,15.80730786]
[1672545056374,40.0,9.9553,9.9458,40.0]
[1672545056692,40.0,9.9551,9.9459,15.80730786]
[1672545056902,40.0,9.9549,9.9459,15.80730786]
[1672545057107,75.44,9.9548,9.9459,15.80730786]
[1672545057334,40.0,9.9547,9.9459,15.80730786]
[1672545057538,75.44,9.9546,9.9459,15.80730786]
[1672545057748,74.12123835,9.9543,9.9408,47.7789]
[1672545057960,189.57123835,9.9542,9.941,185.066]
[1672545058163,276.2099,9.9542,9.9411,116.8042]
[1672545058369,350.33113835,9.9542,9.9412,20.0]
[1672545058583,276.2099,9.9542,9.9412,20.0]
[1672545058794,40.0,9.954,9.9413,165.066]
[1672545059006,40.0,9.954,9.9413,180.87330786]
[1672545059007,40.0,9.9538,9.9413,180.87330786]
[1672545059214,75.45,9.9537,9.9414,15.80730786]
[1672545059434,40.0,9.9536,9.9414,165.0486]
[1672545059631,40.0,9.9534,9.9414,165.0486]
[1672545059846,40.0,9.9532,9.9414,165.0486]
[1672545060068,75.45,9.9531,9.9415,48.2444]
[1672545060296,40.0,9.953,9.9415,48.2444]
[1672545060495,40.0,9.9528,9.9415,48.2444]
[1672545060810,40.0,9.9526,9.9416,23.9686]
[1672545061028,40.0,9.9524,9.9416,23.9686]
[1672545061334,40.0,9.9524,9.9415,24.2758]
[1672545061335,40.0,9.9522,9.9417,23.9686]
[1672545061524,75.46,9.9521,9.9417,23.9686]
[1672545061735,40.0,9.952,9.9417,23.9686]
[1672545061943,40.0,9.952,9.9415,24.2758]
[1672545061944,40.0,9.9518,9.9418,23.9686]
[1672545062154,40.0,9.9516,9.9418,23.9686]
[1672545062472,75.47,9.9515,9.9418,23.9686]
[1672545062796,40.0,9.9514,9.9418,23.9686]
[1672545062991,40.0,9.9512,9.9418,23.9686]
[1672545063205,40.0,9.951,9.9418,23.9686]
[1672545063410,40.0,9.9508,9.9418,23.9686]
[1672545063621,75.47,9.9507,9.9418,23.9686]
[1672545063852,40.0,9.9506,9.9418,23.9686]
[1672545064046,40.0,9.9504,9.9418,23.9686]
[1672545064261,40.0,9.9502,9.9418,23.9686]
[1672545064471,75.48,9.9501,9.9418,23.9686]
[1672545064674,40.0,9.95,9.9418,23.9686]
[1672545064885,40.0,9.9498,9.9418,23.9686]
[1672545065093,40.0,9.9496,9.9418,23.9686]
[1672545065323,75.48,9.9495,9.9418,23.9686]
[1672545065536,40.0,9.9494,9.9418,23.9686]
[1672545065730,40.0,9.9492,9.9418,23.9686]
[1672545065940,40.0,9.949,9.9418,23.9686]
[1672545066150,75.49,9.9489,9.9418,23.9686]
[1672545066364,40.0,9.9488,9.9418,23.9686]
[1672545066567,75.49,9.9487,9.9418,23.9686]
[1672545067104,40.0,9.949,9.9418,23.9686]
[1672545067304,75.49,9.9489,9.9418,23.9686]
[1672545068459,75.48,9.9491,9.9418,23.9686]
[1672545068997,75.48,9.9493,9.9418,23.9686]
[1672545069529,40.0,9.9494,9.9418,23.9686]
[1672545069723,75.48,9.9493,9.9418,23.9686]
[1672545070996,40.0,9.9492,9.9418,23.9686]
[1672545071185,75.48,9.9491,9.9418,23.9686]
[1672545071400,75.48,9.9493,9.9419,40.0]
[1672545071609,75.48,9.9493,9.9418,23.9686]
[1672545071826,40.0,9.9498,9.9418,23.9686]
[1672545072138,40.0,9.9496,9.9418,23.9686]
[1672545072355,75.48,9.9495,9.9418,23.9686]
[1672545072548,40.0,9.9494,9.9418,23.9686]
[1672545072763,75.48,9.9493,9.9418,23.9686]
[1672545073523,40.0,9.9492,9.9418,23.9686]
[1672545073736,40.0,9.949,9.9418,23.9686]
[1672545073923,75.49,9.9489,9.9418,23.9686]
[1672545074132,40.0,9.9488,9.9418,23.9686]
[1672545074468,40.0,9.9486,9.9418,23.9686]
[1672545074677,40.0,9.9484,9.9418,23.9686]
[1672545074873,40.0,9.9482,9.9418,23.9686]
[1672545075084,75.49,9.9481,9.9418,23.9686]
[1672545075316,40.0,9.948,9.9418,23.9686]
[1672545075515,40.0,9.9478,9.9418,23.9686]
[1672545075722,75.49,9.9477,9.9418,23.9686]
[1672545076039,40.0,9.9476,9.9418,23.9686]
[1672545076245,40.0,9.9474,9.9418,23.9686]
[1672545076884,40.0,9.9474,9.9415,24.2758]
[1672545078337,75.5,9.9475,9.9415,24.2758]
[1672545078548,75.49,9.9477,9.9415,24.2758]
[1672545078870,75.49,9.9479,9.9415,24.2758]
[1672545079094,75.49,9.9487,9.9415,24.2758]
[1672545079515,40.0,9.9496,9.9415,24.2758]
[1672545079840,40.0,9.9494,9.9415,24.2758]
[1672545080023,75.48,9.9493,9.9415,24.2758]
[1672545080238,40.0,9.9492,9.9415,24.2758]
[1672545080455,75.48,9.9491,9.9415,24.2758]
[1672545081094,40.0,9.949,9.9415,24.2758]
[1672545081302,75.49,9.9489,9.9415,24.2758]
[1672545081723,40.0,9.9498,9.9415,24.2758]
[1672545081931,40.0,9.9496,9.9415,24.2758]
[1672545082136,75.48,9.9495,9.9415,24.2758]
[1672545082340,40.0,9.9494,9.9415,24.2758]
[1672545082556,40.0,9.9492,9.9415,24.2758]
[1672545082766,75.48,9.9491,9.9416,40.0]
[1672545082978,75.48,9.9499,9.9416,40.0]
[1672545083187,40.0,9.9504,9.9416,40.0]
[1672545083402,40.0,9.9502,9.9416,40.0]
[1672545083616,75.48,9.9501,9.9416,40.0]
[1672545084237,40.0,9.9502,9.9416,40.0]
[1672545084463,40.0,9.95,9.9416,40.0]
[1672545084660,75.48,9.9499,9.9416,40.0]
[1672545085822,40.0,9.9504,9.9416,40.0]
[1672545086024,75.47,9.9503,9.9416,40.0]
[1672545086243,75.47,9.9506,9.9416,40.0]
[1672545087073,40.0,9.9505,9.9416,40.0]
[1672545087383,40.0,9.9503,9.9416,40.0]
[1672545087607,75.48,9.9502,9.9416,40.0]
[1672545087825,40.0,9.9501,9.9416,40.0]
[1672545088029,75.48,9.95,9.9416,40.0]
[1672545088654,40.0,9.9503,9.9416,40.0]
[1672545088875,75.48,9.9502,9.9416,40.0]
[1672545089279,75.47,9.9504,9.9416,40.0]
[1672545090362,40.0,9.9503,9.9415,24.2758]
[1672545090574,40.0,9.9501,9.9415,24.2758]
[1672545090781,75.48,9.95,9.9415,24.2758]
[1672545090990,40.0,9.9499,9.9415,24.2758]
[1672545091309,40.0,9.9497,9.9415,24.2758]
[1672545091518,40.0,9.9495,9.9415,24.2758]
[1672545091737,40.0,9.9493,9.9415,24.2758]
[1672545092043,40.0,9.9491,9.9415,24.2758]
[1672545092362,75.48,9.949,9.9415,24.2758]
[1672545092557,40.0,9.9493,9.9415,24.2758]
[1672545092770,40.0,9.9491,9.9415,24.2758]
[1672545092990,75.48,9.949,9.9415,24.2758]
[1672545094030,40.0,9.9489,9.9415,24.2758]
[1672545094234,75.49,9.9488,9.9415,24.2758]
[1672545094977,40.0,9.9487,9.9415,24.2758]
[1672545095197,75.49,9.9486,9.9415,24.2758]
[1672545096039,75.48,9.9492,9.9415,24.2758]